{"text_format":"3","workbook":"xlsx","n_sheets":5,"sheets":["Over","Mijlpalen","Taken","Gantt-diagram","Dyn. grafiekgegevens verborgen"],"not_rendered":{"charts":1,"defined_names":4},"read":"whole","date_system":"1900"}

{"sheet":"Over","index":0,"n_rows":11,"n_cols":1,"rows_kept":11}
["Over deze werkmap"]
["Voer informatie over mijlpalen en taken in op de werkbladen Mijlpalen en Taken.  Als u mijlpalen langs de tijdlijn wilt plaatsen, voert u in de kolom Getal de waarde 0 in en werkt u vervolgens de labelpositie bij naar 'onder' om overlappende labels te voorkomen.\n\nDe kolom Positie in de tabel Mijlpaal plaatst mijlpalen in het taakdiagram op dezelfde rij of in gestapelde rijen. Als u ze op dezelfde rij wilt plaatsen, voert u in deze kolom hetzelfde getal in voor elke mijlpaal. Als u ze op verschillende rijen wilt plaatsen, voert u verschillende getallen in. Voorbeeldgegevens plaatsen alle mijlpalen langs de rijpositie 2.\n"]
["Gids voor schermlezers"]
["\nEr zijn 5 werkbladen in deze werkmap:\nOver\nMijlpalen\nTaken\nGantt-diagram\nDyn. grafiekgegevens (verborgen)\n\nDe instructies voor elk werkblad staan in kolom A, beginnend in cel A1 van elk werkblad. Ze zijn geschreven met verborgen tekst. Elke stap leidt u door de informatie in die rij. Elke volgende stap gaat verder in cel A2, A3 enzovoort, tenzij uitdrukkelijk anderszins vermeld, bijvoorbeeld wanneer de instructietekst voor de volgende stap \"Ga naar cel A6\" is. \n\nVerborgen tekst wordt niet afgedrukt.\nAls u deze instructies van een werkblad wilt verwijderen, verwijdert u gewoon kolom A.\n"]
["Dyn. grafiekgegevens (verborgen)"]
["\nZorg dat u de inhoud in het werkblad Verborgen niet verwijdert of wijzigt. Als u dit wel doet, kan dit de integriteit van het Gantt-diagram compromitteren.\n\nGegevens kunnen er leeg uitzien en datums kunnen verkeerd lijken. Zorg dat u de gegevens niet invult, wijzigt of verwijdert, anders overschrijft u wellicht formules en kunnen gegevens niet op de grafiek worden geplaatst.\n\nMet de tabel DynamicMilestone kunnen er 15 mijlpalen op de grafiek worden geplaatst. Als u meer dan 15 wilt, breidt u de tabel gewoon uit tot het gewenste aantal. Voeg de daadwerkelijke mijlpaalgegevens alleen in het werkblad Grafiekgegevens toe.\n"]
["Tips"]
["\nMijlpalen worden standaard in rij 1 van het Gantt-diagram geplaatst met behulp van de kolom Positie in het werkblad Grafiekgegevens, beginnend in cel C5. Als u mijlpalen op andere rijen wilt plaatsen, wijzigt u gewoon het getal. \n"]
["De huidige datum wordt standaard gemarkeerd in het Gantt-diagram. Als u de huidige datum niet meer wilt markeren, selecteert u gewoon 'Nee' in cel D2 van het werkblad Grafiekgegevens.\n"]
["De tijdlijn van het Gantt-diagram wordt weergegeven met intervallen van 5 datums. Als u dit wilt wijzigen, selecteert u de tijdlijn in het werkblad Gantt-diagram en selecteert u As opmaken. Wijzig de primaire eenheid 5 bijvoorbeeld in 1 of 10. \n"]
["Dit is de laatste instructie in dit werkblad."]

{"sheet":"Mijlpalen","index":1,"n_rows":26,"n_cols":5,"rows_kept":26}
["Maak in dit werkblad een Gantt-diagram voor het bijhouden van datums.\nDe titel van dit werkblad staat in cel B1. \nInformatie over hoe u dit werkblad gebruikt, waaronder instructies voor schermlezers, staat in het werkblad Over.\nNavigeer verder omlaag in kolom A voor verdere instructies.","Gantt-diagram voor het bijhouden van datums"]
["Selecteer Ja in cel D2 als u de huidige datum wilt markeren in het werkblad Gantt-diagram. \nSelecteer Nee in cel D2 als u de huidige datum niet wilt markeren in het werkblad Gantt-diagram.\nDruk in cel D2 op ALT+pijl-omlaag voor opties.","Huidige datum bijhouden?",null,"Ja"]
["De koptekst Mijlpalen voor de tabel Mijlpaal staat in cel B3.\nDe koptekst Taken voor de tabel Taken staat in cel G3.","Mijlpalen"]
["Informatie over de kolommen in de tabel Mijlpaal staat in deze rij in de cellen B4 t/m E4.\nInformatie over de kolommen in de tabel Taken staat in deze rij in de cellen G4 t/m J4.","Deze kolom moet opeenvolgend worden geordend.","De kolom Positie plaatst mijlpalen in het taakdiagram.","Voer in deze kolom de datum voor een mijlpaal in.","Voer in deze kolom een mijlpaalbeschrijving in. Deze beschrijvingen verschijnen in het diagram."]
["Kopteksten voor de tabel Mijlpaal staan in de cellen B5 t/m E5. Kopteksten voor de tabel Taken staan in de cellen G5 t/m J5.\nVoorbeeldgegevens voor mijlpalen staan in de cellen B6 t/m E11. \nVoorbeeldgegevens voor taken staan in de cellen G6 t/m J17.\nDe volgende aanwijzing staat in cel A21.","Getal","Positie","Datum","Mijlpaal"]
[null,1,1,{"$f":"Begindatum+10","v":"2024-04-17"},"Mijlpaal 1"]
[null,2,1,{"$f":"TODAY()+25","v":"2024-05-03"},"Mijlpaal 2"]
[null,3,1,{"$f":"TODAY()+35","v":"2024-05-13"},"Mijlpaal 3"]
[null,4,1,{"$f":"TODAY()+45","v":"2024-05-23"},"Mijlpaal 4"]
[null,5,1,{"$f":"TODAY()+60","v":"2024-06-07"},"Mijlpaal 5"]
[null,6,1,{"$f":"TODAY()+70","v":"2024-06-17"},"Mijlpaal 6"]
{"$rows_empty":9}
["Als u nog meer mijlpalen wilt toevoegen, voegt u boven deze rij een nieuwe rij in.\nNB: het standaardaantal mijlpalen om op de grafiek te plaatsen is 15. Als u nieuwe mijlpalen toevoegt, moet het verborgen werkblad worden gewijzigd. Zie het werkblad Over in cel A9 voor meer informatie.\nDe volgende aanwijzing staat in cel A26.","Als u nog meer mijlpalen wilt toevoegen, voegt u boven deze rij een nieuwe rij in."]
[]
[]
[]
[]
["In cel G26 staat een notitie.\nDit is de laatste instructie in dit werkblad."]

{"sheet":"Taken","index":2,"n_rows":26,"n_cols":6,"rows_kept":26}
["Maak in dit werkblad een Gantt-diagram voor het bijhouden van datums.\nDe titel van dit werkblad staat in cel B1. \nInformatie over hoe u dit werkblad gebruikt, waaronder instructies voor schermlezers, staat in het werkblad Over.\nNavigeer verder omlaag in kolom A voor verdere instructies.","Gantt-diagram voor het bijhouden van datums"]
[]
["De koptekst Mijlpalen voor de tabel Mijlpaal staat in cel B3.\nDe koptekst Taken voor de tabel Taken staat in cel G3.","Taken"]
[null,"Deze kolom moet opeenvolgend worden geordend.","Voer de begindatum voor elke taak hieronder in. Voor de beste resultaten sorteert u deze kolom in oplopende volgorde.","Voer in deze kolom de einddatum voor elke taak of activiteit hieronder in.","Voer in deze kolom taken en/of activiteiten in.","Automatisch berekende kolom die wordt gebruikt om de duur van elke taak op de grafiek te plaatsen. Verwijder of wijzig dit niet."]
[null,"Getal","Begindatum","Einddatum","Taak","Duur in dagen"]
[null,1,{"$f":"TODAY()-1","v":"2024-04-07"},{"$f":"Taken[[#This Row],[Begindatum]]+1","v":"2024-04-08"},"Activiteit 1",{"$f":"IFERROR(IF(LEN(Taken[[#This Row],[Begindatum]])=0,\"\",(INT(Taken[[#This Row],[Einddatum]])-INT(Taken[[#This Row],[Begindatum]]))-(INT(Taken[[#This Row],[Begindatum]])-INT(Taken[[#This Row],[Begindatum]]))+1),\"\")","v":2}]
[null,2,{"$f":"TODAY()","v":"2024-04-08"},{"$f":"Taken[[#This Row],[Begindatum]]+1","v":"2024-04-09"},"Activiteit 2",{"$f":"IFERROR(IF(LEN(Taken[[#This Row],[Begindatum]])=0,\"\",(INT(Taken[[#This Row],[Einddatum]])-INT(Taken[[#This Row],[Begindatum]]))-(INT(Taken[[#This Row],[Begindatum]])-INT(Taken[[#This Row],[Begindatum]]))+1),\"\")","v":2}]
[null,3,{"$f":"TODAY()","v":"2024-04-08"},{"$f":"Taken[[#This Row],[Begindatum]]+5","v":"2024-04-13"},"Activiteit 3",{"$f":"IFERROR(IF(LEN(Taken[[#This Row],[Begindatum]])=0,\"\",(INT(Taken[[#This Row],[Einddatum]])-INT(Taken[[#This Row],[Begindatum]]))-(INT(Taken[[#This Row],[Begindatum]])-INT(Taken[[#This Row],[Begindatum]]))+1),\"\")","v":6}]
[null,4,{"$f":"TODAY()+1","v":"2024-04-09"},{"$f":"Taken[[#This Row],[Begindatum]]+7","v":"2024-04-16"},"Activiteit 4",{"$f":"IFERROR(IF(LEN(Taken[[#This Row],[Begindatum]])=0,\"\",(INT(Taken[[#This Row],[Einddatum]])-INT(Taken[[#This Row],[Begindatum]]))-(INT(Taken[[#This Row],[Begindatum]])-INT(Taken[[#This Row],[Begindatum]]))+1),\"\")","v":8}]
[null,5,{"$f":"TODAY()+8","v":"2024-04-16"},{"$f":"Taken[[#This Row],[Begindatum]]+10","v":"2024-04-26"},"Activiteit 5",{"$f":"IFERROR(IF(LEN(Taken[[#This Row],[Begindatum]])=0,\"\",(INT(Taken[[#This Row],[Einddatum]])-INT(Taken[[#This Row],[Begindatum]]))-(INT(Taken[[#This Row],[Begindatum]])-INT(Taken[[#This Row],[Begindatum]]))+1),\"\")","v":11}]
[null,6,{"$f":"TODAY()+12","v":"2024-04-20"},{"$f":"Taken[[#This Row],[Begindatum]]+30","v":"2024-05-20"},"Activiteit 6",{"$f":"IFERROR(IF(LEN(Taken[[#This Row],[Begindatum]])=0,\"\",(INT(Taken[[#This Row],[Einddatum]])-INT(Taken[[#This Row],[Begindatum]]))-(INT(Taken[[#This Row],[Begindatum]])-INT(Taken[[#This Row],[Begindatum]]))+1),\"\")","v":31}]
[null,7,{"$f":"TODAY()+15","v":"2024-04-23"},{"$f":"Taken[[#This Row],[Begindatum]]+15","v":"2024-05-08"},"Activiteit 7",{"$f":"IFERROR(IF(LEN(Taken[[#This Row],[Begindatum]])=0,\"\",(INT(Taken[[#This Row],[Einddatum]])-INT(Taken[[#This Row],[Begindatum]]))-(INT(Taken[[#This Row],[Begindatum]])-INT(Taken[[#This Row],[Begindatum]]))+1),\"\")","v":16}]
[null,8,{"$f":"TODAY()+25","v":"2024-05-03"},{"$f":"Taken[[#This Row],[Begindatum]]+5","v":"2024-05-08"},"Activiteit 8",{"$f":"IFERROR(IF(LEN(Taken[[#This Row],[Begindatum]])=0,\"\",(INT(Taken[[#This Row],[Einddatum]])-INT(Taken[[#This Row],[Begindatum]]))-(INT(Taken[[#This Row],[Begindatum]])-INT(Taken[[#This Row],[Begindatum]]))+1),\"\")","v":6}]
[null,9,{"$f":"TODAY()+34","v":"2024-05-12"},{"$f":"Taken[[#This Row],[Begindatum]]+2","v":"2024-05-14"},"Activiteit 9",{"$f":"IFERROR(IF(LEN(Taken[[#This Row],[Begindatum]])=0,\"\",(INT(Taken[[#This Row],[Einddatum]])-INT(Taken[[#This Row],[Begindatum]]))-(INT(Taken[[#This Row],[Begindatum]])-INT(Taken[[#This Row],[Begindatum]]))+1),\"\")","v":3}]
[null,10,{"$f":"TODAY()+40","v":"2024-05-18"},{"$f":"Taken[[#This Row],[Begindatum]]+30","v":"2024-06-17"},"Activiteit 10",{"$f":"IFERROR(IF(LEN(Taken[[#This Row],[Begindatum]])=0,\"\",(INT(Taken[[#This Row],[Einddatum]])-INT(Taken[[#This Row],[Begindatum]]))-(INT(Taken[[#This Row],[Begindatum]])-INT(Taken[[#This Row],[Begindatum]]))+1),\"\")","v":31}]
[null,11,{"$f":"TODAY()+42","v":"2024-05-20"},{"$f":"Taken[[#This Row],[Begindatum]]+23","v":"2024-06-12"},"Activiteit 11",{"$f":"IFERROR(IF(LEN(Taken[[#This Row],[Begindatum]])=0,\"\",(INT(Taken[[#This Row],[Einddatum]])-INT(Taken[[#This Row],[Begindatum]]))-(INT(Taken[[#This Row],[Begindatum]])-INT(Taken[[#This Row],[Begindatum]]))+1),\"\")","v":24}]
[null,12,{"$f":"TODAY()+50","v":"2024-05-28"},{"$f":"Taken[[#This Row],[Begindatum]]+5","v":"2024-06-02"},"Activiteit 12",{"$f":"IFERROR(IF(LEN(Taken[[#This Row],[Begindatum]])=0,\"\",(INT(Taken[[#This Row],[Einddatum]])-INT(Taken[[#This Row],[Begindatum]]))-(INT(Taken[[#This Row],[Begindatum]])-INT(Taken[[#This Row],[Begindatum]]))+1),\"\")","v":6}]
[{"$nulls":5},{"$f":"IFERROR(IF(LEN(Taken[[#This Row],[Begindatum]])=0,\"\",(INT(Taken[[#This Row],[Einddatum]])-INT(Taken[[#This Row],[Begindatum]]))-(INT(Taken[[#This Row],[Begindatum]])-INT(Taken[[#This Row],[Begindatum]]))+1),\"\")","v":""}]
[{"$nulls":5},{"$f":"IFERROR(IF(LEN(Taken[[#This Row],[Begindatum]])=0,\"\",(INT(Taken[[#This Row],[Einddatum]])-INT(Taken[[#This Row],[Begindatum]]))-(INT(Taken[[#This Row],[Begindatum]])-INT(Taken[[#This Row],[Begindatum]]))+1),\"\")","v":""}]
[{"$nulls":5},{"$f":"IFERROR(IF(LEN(Taken[[#This Row],[Begindatum]])=0,\"\",(INT(Taken[[#This Row],[Einddatum]])-INT(Taken[[#This Row],[Begindatum]]))-(INT(Taken[[#This Row],[Begindatum]])-INT(Taken[[#This Row],[Begindatum]]))+1),\"\")","v":""}]
[{"$nulls":5},{"$f":"IFERROR(IF(LEN(Taken[[#This Row],[Begindatum]])=0,\"\",(INT(Taken[[#This Row],[Einddatum]])-INT(Taken[[#This Row],[Begindatum]]))-(INT(Taken[[#This Row],[Begindatum]])-INT(Taken[[#This Row],[Begindatum]]))+1),\"\")","v":""}]
[{"$nulls":5},{"$f":"IFERROR(IF(LEN(Taken[[#This Row],[Begindatum]])=0,\"\",(INT(Taken[[#This Row],[Einddatum]])-INT(Taken[[#This Row],[Begindatum]]))-(INT(Taken[[#This Row],[Begindatum]])-INT(Taken[[#This Row],[Begindatum]]))+1),\"\")","v":""}]
[{"$nulls":5},{"$f":"IFERROR(IF(LEN(Taken[[#This Row],[Begindatum]])=0,\"\",(INT(Taken[[#This Row],[Einddatum]])-INT(Taken[[#This Row],[Begindatum]]))-(INT(Taken[[#This Row],[Begindatum]])-INT(Taken[[#This Row],[Begindatum]]))+1),\"\")","v":""}]
[{"$nulls":5},{"$f":"IFERROR(IF(LEN(Taken[[#This Row],[Begindatum]])=0,\"\",(INT(Taken[[#This Row],[Einddatum]])-INT(Taken[[#This Row],[Begindatum]]))-(INT(Taken[[#This Row],[Begindatum]])-INT(Taken[[#This Row],[Begindatum]]))+1),\"\")","v":""}]
[{"$nulls":5},{"$f":"IFERROR(IF(LEN(Taken[[#This Row],[Begindatum]])=0,\"\",(INT(Taken[[#This Row],[Einddatum]])-INT(Taken[[#This Row],[Begindatum]]))-(INT(Taken[[#This Row],[Begindatum]])-INT(Taken[[#This Row],[Begindatum]]))+1),\"\")","v":""}]
[null,"Als u nog meer taken wilt toevoegen, voegt u boven deze rij een nieuwe rij in."]

{"sheet":"Gantt-diagram","index":3,"n_rows":1,"n_cols":1,"rows_kept":1}
["Een Gantt-diagram dat Vandaag, mijlpalen en taken binnen een datumbereik toont, staat in dit werkblad. \nIn rij 1 staat een schuifbalk in de cellen B1 t/m R1 die het datumbereik verhoogt en toekomstige mijlpalen weergeeft.\nHet diagram wordt getekend in de cellen B2 t/m R3.\nDit is de laatste instructie in dit werkblad."]

{"sheet":"Dyn. grafiekgegevens verborgen","index":4,"n_rows":32,"n_cols":10,"rows_kept":32,"hidden":true}
["De titel van dit werkblad staat in cel B1.","Dynamische grafiekgegevens, wijzig of verwijder dit werkblad NIET!"]
["De tabeltitel staat in de cellen B2 en C2.",{"$f":"IF(TODAY()>=MIN(DynamischeTaakGegevens[Begindatum]),\"Vandaag\",\"\")","v":"Vandaag"},"markeren"]
["De tabelkop staat in de cellen B3 en C3. Deze coördinaten maken de Vandaag-markering in het diagram.\nDe eerste kolom markeert de dag, de tweede geeft aan dat de lijn moet worden getekend die Vandaag markeert.\nDe datum in de eerste kolom kan veranderen, zodat het datumbereik van het diagram leesbaar blijft naarmate de datums vorderen. Als de y-coördinaat echter 0 is, geeft dit aan dat er geen lijn wordt getekend.\nWijzig of verwijder deze inhoud niet, anders kunnen de gegevens misschien niet op de grafiek worden geplaatst. Als u de huidige datum niet meer wilt markeren, selecteert u gewoon 'Nee' in cel D2 van het werkblad Grafiekgegevens.\nDe volgende aanwijzing staat in cel A7.","x-coördinaat Vandaag-markering","y-coördinaat"]
[null,{"$f":"IFERROR(IF(TODAY()<MIN(DynamischeTaakGegevens[Begindatum]),MIN($B$11,MIN(DynamischeTaakGegevens[Begindatum])),TODAY()),TODAY())","v":"2024-04-08"},{"$f":"IFERROR(IF(Track_Today=\"Ja\",IF(TODAY()<MIN(DynamischeTaakGegevens[Begindatum]),0,9),0),0)","v":9}]
[null,{"$f":"IFERROR(IF(TODAY()<MIN(DynamischeTaakGegevens[Begindatum]),MIN($B$11,MIN(DynamischeTaakGegevens[Begindatum])),TODAY()),TODAY())","v":"2024-04-08"},{"$f":"IFERROR(IF(Track_Today=\"Ja\",IF(TODAY()<MIN(DynamischeTaakGegevens[Begindatum]),0,9),0),0)","v":9}]
[]
["De tabelkop staat in cel B7.\nDe scrolverhoging in cel B8 vertegenwoordigt de gegevens die op een willekeurig moment in het Gantt-diagram worden geplaatst en visueel verschijnen. \nAls u scrolt met de schuifbalk bovenaan het diagram in rij 1 van het werkblad Gantt-diagram, wordt dit getal verhoogd.\nHet plaatsen van gegevens op de grafiek werkt het best met enkelvoudige verhogingen.\nDe volgende aanwijzing staat in cel A10.","scrolverhoging"]
[null,0]
[]
["De tabelkop staat in de cellen B10 en D10.\nHet Diagrambereik helpt het geschikte bereik van taken en mijlpalen te selecteren. Wijzig deze velden niet.\nHet Ageoff-getal houdt het diagram leesbaar door taken in het bereik een leeftijd te geven en alleen de taken uit te zetten die binnen het bereik vallen.  Wijzig dit getal niet.\nDe volgende aanwijzing staat in cel A14.\n\n","Diagrambereik",null,"ageoff"]
[null,{"$f":"IFERROR(IF(ScrollingIncrement[scrolverhoging]=0,Begindatum,IF(Begindatum+ScrollingIncrement[scrolverhoging]*15<Einddatum,Begindatum+ScrollingIncrement[scrolverhoging]*15,Einddatum-1)),\"\")","v":"2024-04-07"},null,45]
[null,{"$f":"IFERROR(IF($B$11+15<Einddatum,$B$11+15,Einddatum),\"\")","v":"2024-04-22"}]
[]
["De tabelkop voor Dynamische mijlpaalgegevens staat in de cellen B14 t/m E14. In cel F14 staat een notitie.\nDeze tabel maakt het Gantt-diagram in het werkblad Gantt-diagram, waarbij 7 mijlpalen tegelijk worden uitgezet.\nDe gegevens in dit diagram worden automatisch gegenereerd op basis van de inhoud in de tabel erboven. \nZorg dat u deze tabel of de inhoud ervan niet wijzigt of verwijdert.\nDe volgende aanwijzing staat in cel A17.","Taken","Begindatum","Taakduur in dagen","positie","<-- deze tabel maakt het Gantt-diagram, waarbij 7 mijlpalen tegelijk worden uitgezet"]
[null,{"$f":"IFERROR(IF(LEN(OFFSET(Taken!$C6,ScrollingIncrement[scrolverhoging],0,1,1))=0,\"\",IF(OR(OFFSET(Taken!$D6,ScrollingIncrement[scrolverhoging],0,1,1)<=$B$12,OFFSET(Taken!$C6,ScrollingIncrement[scrolverhoging],0,1,1)>=($B$11-$D$11)),INDEX(Taken[],OFFSET(Taken!$B6,ScrollingIncrement[scrolverhoging],0,1,1),4),\"\")),\"\")","v":"Activiteit 1"},{"$f":"IFERROR(IF(LEN(DynamischeTaakGegevens[[#This Row],[Taken]])=0,$B$11,INDEX(Taken[],OFFSET(Taken!$B6,ScrollingIncrement[scrolverhoging],0,1,1),2)),\"\")","v":"2024-04-07"},{"$f":"IFERROR(IF(LEN(DynamischeTaakGegevens[[#This Row],[Taken]])=0,0,IF(AND(Taken!$C6<=$B$12,Taken!$D6>=$B$12),ABS(OFFSET(Taken!$C6,ScrollingIncrement[scrolverhoging],0,1,1)-$B$12)+1,OFFSET(Taken!$F6,ScrollingIncrement[scrolverhoging],0,1,1))),\"\")","v":2},{"$f":"IFERROR(IF(LEN(DynamischeTaakGegevens[[#This Row],[Taken]])=0,\"\",8),\"\")","v":8}]
[null,{"$f":"IFERROR(IF(LEN(OFFSET(Taken!$C7,ScrollingIncrement[scrolverhoging],0,1,1))=0,\"\",IF(OR(OFFSET(Taken!$D7,ScrollingIncrement[scrolverhoging],0,1,1)<=$B$12,OFFSET(Taken!$C7,ScrollingIncrement[scrolverhoging],0,1,1)>=($B$11-$D$11)),INDEX(Taken[],OFFSET(Taken!$B7,ScrollingIncrement[scrolverhoging],0,1,1),4),\"\")),\"\")","v":"Activiteit 2"},{"$f":"IFERROR(IF(LEN(DynamischeTaakGegevens[[#This Row],[Taken]])=0,$B$11,INDEX(Taken[],OFFSET(Taken!$B7,ScrollingIncrement[scrolverhoging],0,1,1),2)),\"\")","v":"2024-04-08"},{"$f":"IFERROR(IF(LEN(DynamischeTaakGegevens[[#This Row],[Taken]])=0,0,IF(AND(Taken!$C7<=$B$12,Taken!$D7>=$B$12),ABS(OFFSET(Taken!$C7,ScrollingIncrement[scrolverhoging],0,1,1)-$B$12)+1,OFFSET(Taken!$F7,ScrollingIncrement[scrolverhoging],0,1,1))),\"\")","v":2},{"$f":"IFERROR(IF(LEN(DynamischeTaakGegevens[[#This Row],[Taken]])=0,\"\",7),\"\")","v":7},null,"Mijlpaalgrafieken"]
["De cellen G15 t/m I15 bevatten tabelkoppen voor Dynamische mijlpaalgegevens. \nGegevens in deze tabel kunnen er leeg uitzien en datums kunnen verkeerd lijken. Zorg dat u deze gegevens niet invult, wijzigt of verwijdert, anders overschrijft u wellicht formules en kunnen gegevens niet op de grafiek worden geplaatst.\nMet de tabel kunnen er 15 mijlpalen op de grafiek worden geplaatst. Als u meer dan 15 wilt, breidt u de tabel gewoon uit tot het gewenste aantal. Voeg de mijlpalen alleen in het werkblad Grafiekgegevens toe. Voeg geen inhoud aan deze tabel toe.\nIn cel J15 staat een notitie.\nDe volgende aanwijzing staat in cel A32.",{"$f":"IFERROR(IF(LEN(OFFSET(Taken!$C8,ScrollingIncrement[scrolverhoging],0,1,1))=0,\"\",IF(OR(OFFSET(Taken!$D8,ScrollingIncrement[scrolverhoging],0,1,1)<=$B$12,OFFSET(Taken!$C8,ScrollingIncrement[scrolverhoging],0,1,1)>=($B$11-$D$11)),INDEX(Taken[],OFFSET(Taken!$B8,ScrollingIncrement[scrolverhoging],0,1,1),4),\"\")),\"\")","v":"Activiteit 3"},{"$f":"IFERROR(IF(LEN(DynamischeTaakGegevens[[#This Row],[Taken]])=0,$B$11,INDEX(Taken[],OFFSET(Taken!$B8,ScrollingIncrement[scrolverhoging],0,1,1),2)),\"\")","v":"2024-04-08"},{"$f":"IFERROR(IF(LEN(DynamischeTaakGegevens[[#This Row],[Taken]])=0,0,IF(AND(Taken!$C8<=$B$12,Taken!$D8>=$B$12),ABS(OFFSET(Taken!$C8,ScrollingIncrement[scrolverhoging],0,1,1)-$B$12)+1,OFFSET(Taken!$F8,ScrollingIncrement[scrolverhoging],0,1,1))),\"\")","v":6},{"$f":"IFERROR(IF(LEN(DynamischeTaakGegevens[[#This Row],[Taken]])=0,\"\",6),\"\")","v":6},null,"Mijlpalen","Datum","Basislijn","<-- deze tabel maakt de mijlpaalmarkeringen in het Gantt-diagram, waarbij alleen de mijlpalen worden uitgezet die in het weergegeven datumbereik passen; maximaal 15 mijlpalen"]
[null,{"$f":"IFERROR(IF(LEN(OFFSET(Taken!$C9,ScrollingIncrement[scrolverhoging],0,1,1))=0,\"\",IF(OR(OFFSET(Taken!$D9,ScrollingIncrement[scrolverhoging],0,1,1)<=$B$12,OFFSET(Taken!$C9,ScrollingIncrement[scrolverhoging],0,1,1)>=($B$11-$D$11)),INDEX(Taken[],OFFSET(Taken!$B9,ScrollingIncrement[scrolverhoging],0,1,1),4),\"\")),\"\")","v":"Activiteit 4"},{"$f":"IFERROR(IF(LEN(DynamischeTaakGegevens[[#This Row],[Taken]])=0,$B$11,INDEX(Taken[],OFFSET(Taken!$B9,ScrollingIncrement[scrolverhoging],0,1,1),2)),\"\")","v":"2024-04-09"},{"$f":"IFERROR(IF(LEN(DynamischeTaakGegevens[[#This Row],[Taken]])=0,0,IF(AND(Taken!$C9<=$B$12,Taken!$D9>=$B$12),ABS(OFFSET(Taken!$C9,ScrollingIncrement[scrolverhoging],0,1,1)-$B$12)+1,OFFSET(Taken!$F9,ScrollingIncrement[scrolverhoging],0,1,1))),\"\")","v":8},{"$f":"IFERROR(IF(LEN(DynamischeTaakGegevens[[#This Row],[Taken]])=0,\"\",5),\"\")","v":5},null,{"$f":"IFERROR(IF(LEN(Mijlpalen!D6)=0,\"\",IF(AND(Mijlpalen!D6<=$B$12,Mijlpalen!D6>=$B$11-$D$11),Mijlpalen!E6,\"\")),\"\")","v":"Mijlpaal 1"},{"$f":"IFERROR(IF(LEN(DynamischeMilestoneGegevens[[#This Row],[Mijlpalen]])=0,$B$12,Mijlpalen!$D6),2)","v":"2024-04-17"},{"$f":"IFERROR(IF(LEN(DynamischeMilestoneGegevens[[#This Row],[Mijlpalen]])=0,\"\",Mijlpalen!$C6),\"\")","v":1}]
[null,{"$f":"IFERROR(IF(LEN(OFFSET(Taken!$C10,ScrollingIncrement[scrolverhoging],0,1,1))=0,\"\",IF(OR(OFFSET(Taken!$D10,ScrollingIncrement[scrolverhoging],0,1,1)<=$B$12,OFFSET(Taken!$C10,ScrollingIncrement[scrolverhoging],0,1,1)>=($B$11-$D$11)),INDEX(Taken[],OFFSET(Taken!$B10,ScrollingIncrement[scrolverhoging],0,1,1),4),\"\")),\"\")","v":"Activiteit 5"},{"$f":"IFERROR(IF(LEN(DynamischeTaakGegevens[[#This Row],[Taken]])=0,$B$11,INDEX(Taken[],OFFSET(Taken!$B10,ScrollingIncrement[scrolverhoging],0,1,1),2)),\"\")","v":"2024-04-16"},{"$f":"IFERROR(IF(LEN(DynamischeTaakGegevens[[#This Row],[Taken]])=0,0,IF(AND(Taken!$C10<=$B$12,Taken!$D10>=$B$12),ABS(OFFSET(Taken!$C10,ScrollingIncrement[scrolverhoging],0,1,1)-$B$12)+1,OFFSET(Taken!$F10,ScrollingIncrement[scrolverhoging],0,1,1))),\"\")","v":7},{"$f":"IFERROR(IF(LEN(DynamischeTaakGegevens[[#This Row],[Taken]])=0,\"\",4),\"\")","v":4},null,{"$f":"IFERROR(IF(LEN(Mijlpalen!D7)=0,\"\",IF(AND(Mijlpalen!D7<=$B$12,Mijlpalen!D7>=$B$11-$D$11),Mijlpalen!E7,\"\")),\"\")","v":""},{"$f":"IFERROR(IF(LEN(DynamischeMilestoneGegevens[[#This Row],[Mijlpalen]])=0,$B$12,Mijlpalen!$D7),2)","v":"2024-04-22"},{"$f":"IFERROR(IF(LEN(DynamischeMilestoneGegevens[[#This Row],[Mijlpalen]])=0,\"\",Mijlpalen!$C7),\"\")","v":""}]
[null,{"$f":"IFERROR(IF(LEN(OFFSET(Taken!$C11,ScrollingIncrement[scrolverhoging],0,1,1))=0,\"\",IF(OR(OFFSET(Taken!$D11,ScrollingIncrement[scrolverhoging],0,1,1)<=$B$12,OFFSET(Taken!$C11,ScrollingIncrement[scrolverhoging],0,1,1)>=($B$11-$D$11)),INDEX(Taken[],OFFSET(Taken!$B11,ScrollingIncrement[scrolverhoging],0,1,1),4),\"\")),\"\")","v":"Activiteit 6"},{"$f":"IFERROR(IF(LEN(DynamischeTaakGegevens[[#This Row],[Taken]])=0,$B$11,INDEX(Taken[],OFFSET(Taken!$B11,ScrollingIncrement[scrolverhoging],0,1,1),2)),\"\")","v":"2024-04-20"},{"$f":"IFERROR(IF(LEN(DynamischeTaakGegevens[[#This Row],[Taken]])=0,0,IF(AND(Taken!$C11<=$B$12,Taken!$D11>=$B$12),ABS(OFFSET(Taken!$C11,ScrollingIncrement[scrolverhoging],0,1,1)-$B$12)+1,OFFSET(Taken!$F11,ScrollingIncrement[scrolverhoging],0,1,1))),\"\")","v":3},{"$f":"IFERROR(IF(LEN(DynamischeTaakGegevens[[#This Row],[Taken]])=0,\"\",3),\"\")","v":3},null,{"$f":"IFERROR(IF(LEN(Mijlpalen!D8)=0,\"\",IF(AND(Mijlpalen!D8<=$B$12,Mijlpalen!D8>=$B$11-$D$11),Mijlpalen!E8,\"\")),\"\")","v":""},{"$f":"IFERROR(IF(LEN(DynamischeMilestoneGegevens[[#This Row],[Mijlpalen]])=0,$B$12,Mijlpalen!$D8),2)","v":"2024-04-22"},{"$f":"IFERROR(IF(LEN(DynamischeMilestoneGegevens[[#This Row],[Mijlpalen]])=0,\"\",Mijlpalen!$C8),\"\")","v":""}]
[null,{"$f":"IFERROR(IF(LEN(OFFSET(Taken!$C12,ScrollingIncrement[scrolverhoging],0,1,1))=0,\"\",IF(OR(OFFSET(Taken!$D12,ScrollingIncrement[scrolverhoging],0,1,1)<=$B$12,OFFSET(Taken!$C12,ScrollingIncrement[scrolverhoging],0,1,1)>=($B$11-$D$11)),INDEX(Taken[],OFFSET(Taken!$B12,ScrollingIncrement[scrolverhoging],0,1,1),4),\"\")),\"\")","v":"Activiteit 7"},{"$f":"IFERROR(IF(LEN(DynamischeTaakGegevens[[#This Row],[Taken]])=0,$B$11,INDEX(Taken[],OFFSET(Taken!$B12,ScrollingIncrement[scrolverhoging],0,1,1),2)),\"\")","v":"2024-04-23"},{"$f":"IFERROR(IF(LEN(DynamischeTaakGegevens[[#This Row],[Taken]])=0,0,IF(AND(Taken!$C12<=$B$12,Taken!$D12>=$B$12),ABS(OFFSET(Taken!$C12,ScrollingIncrement[scrolverhoging],0,1,1)-$B$12)+1,OFFSET(Taken!$F12,ScrollingIncrement[scrolverhoging],0,1,1))),\"\")","v":16},{"$f":"IFERROR(IF(LEN(DynamischeTaakGegevens[[#This Row],[Taken]])=0,\"\",2),\"\")","v":2},null,{"$f":"IFERROR(IF(LEN(Mijlpalen!D9)=0,\"\",IF(AND(Mijlpalen!D9<=$B$12,Mijlpalen!D9>=$B$11-$D$11),Mijlpalen!E9,\"\")),\"\")","v":""},{"$f":"IFERROR(IF(LEN(DynamischeMilestoneGegevens[[#This Row],[Mijlpalen]])=0,$B$12,Mijlpalen!$D9),2)","v":"2024-04-22"},{"$f":"IFERROR(IF(LEN(DynamischeMilestoneGegevens[[#This Row],[Mijlpalen]])=0,\"\",Mijlpalen!$C9),\"\")","v":""}]
[{"$nulls":6},{"$f":"IFERROR(IF(LEN(Mijlpalen!D10)=0,\"\",IF(AND(Mijlpalen!D10<=$B$12,Mijlpalen!D10>=$B$11-$D$11),Mijlpalen!E10,\"\")),\"\")","v":""},{"$f":"IFERROR(IF(LEN(DynamischeMilestoneGegevens[[#This Row],[Mijlpalen]])=0,$B$12,Mijlpalen!$D10),2)","v":"2024-04-22"},{"$f":"IFERROR(IF(LEN(DynamischeMilestoneGegevens[[#This Row],[Mijlpalen]])=0,\"\",Mijlpalen!$C10),\"\")","v":""}]
[{"$nulls":6},{"$f":"IFERROR(IF(LEN(Mijlpalen!D11)=0,\"\",IF(AND(Mijlpalen!D11<=$B$12,Mijlpalen!D11>=$B$11-$D$11),Mijlpalen!E11,\"\")),\"\")","v":""},{"$f":"IFERROR(IF(LEN(DynamischeMilestoneGegevens[[#This Row],[Mijlpalen]])=0,$B$12,Mijlpalen!$D11),2)","v":"2024-04-22"},{"$f":"IFERROR(IF(LEN(DynamischeMilestoneGegevens[[#This Row],[Mijlpalen]])=0,\"\",Mijlpalen!$C11),\"\")","v":""}]
[{"$nulls":6},{"$f":"IFERROR(IF(LEN(Mijlpalen!D12)=0,\"\",IF(AND(Mijlpalen!D12<=$B$12,Mijlpalen!D12>=$B$11-$D$11),Mijlpalen!E12,\"\")),\"\")","v":""},{"$f":"IFERROR(IF(LEN(DynamischeMilestoneGegevens[[#This Row],[Mijlpalen]])=0,$B$12,Mijlpalen!$D12),2)","v":"2024-04-22"},{"$f":"IFERROR(IF(LEN(DynamischeMilestoneGegevens[[#This Row],[Mijlpalen]])=0,\"\",Mijlpalen!$C12),\"\")","v":""}]
[{"$nulls":6},{"$f":"IFERROR(IF(LEN(Mijlpalen!D13)=0,\"\",IF(AND(Mijlpalen!D13<=$B$12,Mijlpalen!D13>=$B$11-$D$11),Mijlpalen!E13,\"\")),\"\")","v":""},{"$f":"IFERROR(IF(LEN(DynamischeMilestoneGegevens[[#This Row],[Mijlpalen]])=0,$B$12,Mijlpalen!$D13),2)","v":"2024-04-22"},{"$f":"IFERROR(IF(LEN(DynamischeMilestoneGegevens[[#This Row],[Mijlpalen]])=0,\"\",Mijlpalen!$C13),\"\")","v":""}]
[{"$nulls":6},{"$f":"IFERROR(IF(LEN(Mijlpalen!D14)=0,\"\",IF(AND(Mijlpalen!D14<=$B$12,Mijlpalen!D14>=$B$11-$D$11),Mijlpalen!E14,\"\")),\"\")","v":""},{"$f":"IFERROR(IF(LEN(DynamischeMilestoneGegevens[[#This Row],[Mijlpalen]])=0,$B$12,Mijlpalen!$D14),2)","v":"2024-04-22"},{"$f":"IFERROR(IF(LEN(DynamischeMilestoneGegevens[[#This Row],[Mijlpalen]])=0,\"\",Mijlpalen!$C14),\"\")","v":""}]
[{"$nulls":6},{"$f":"IFERROR(IF(LEN(Mijlpalen!D15)=0,\"\",IF(AND(Mijlpalen!D15<=$B$12,Mijlpalen!D15>=$B$11-$D$11),Mijlpalen!E15,\"\")),\"\")","v":""},{"$f":"IFERROR(IF(LEN(DynamischeMilestoneGegevens[[#This Row],[Mijlpalen]])=0,$B$12,Mijlpalen!$D15),2)","v":"2024-04-22"},{"$f":"IFERROR(IF(LEN(DynamischeMilestoneGegevens[[#This Row],[Mijlpalen]])=0,\"\",Mijlpalen!$C15),\"\")","v":""}]
[{"$nulls":6},{"$f":"IFERROR(IF(LEN(Mijlpalen!D16)=0,\"\",IF(AND(Mijlpalen!D16<=$B$12,Mijlpalen!D16>=$B$11-$D$11),Mijlpalen!E16,\"\")),\"\")","v":""},{"$f":"IFERROR(IF(LEN(DynamischeMilestoneGegevens[[#This Row],[Mijlpalen]])=0,$B$12,Mijlpalen!$D16),2)","v":"2024-04-22"},{"$f":"IFERROR(IF(LEN(DynamischeMilestoneGegevens[[#This Row],[Mijlpalen]])=0,\"\",Mijlpalen!$C16),\"\")","v":""}]
[{"$nulls":6},{"$f":"IFERROR(IF(LEN(Mijlpalen!D17)=0,\"\",IF(AND(Mijlpalen!D17<=$B$12,Mijlpalen!D17>=$B$11-$D$11),Mijlpalen!E17,\"\")),\"\")","v":""},{"$f":"IFERROR(IF(LEN(DynamischeMilestoneGegevens[[#This Row],[Mijlpalen]])=0,$B$12,Mijlpalen!$D17),2)","v":"2024-04-22"},{"$f":"IFERROR(IF(LEN(DynamischeMilestoneGegevens[[#This Row],[Mijlpalen]])=0,\"\",Mijlpalen!$C17),\"\")","v":""}]
[{"$nulls":6},{"$f":"IFERROR(IF(LEN(Mijlpalen!D18)=0,\"\",IF(AND(Mijlpalen!D18<=$B$12,Mijlpalen!D18>=$B$11-$D$11),Mijlpalen!E18,\"\")),\"\")","v":""},{"$f":"IFERROR(IF(LEN(DynamischeMilestoneGegevens[[#This Row],[Mijlpalen]])=0,$B$12,Mijlpalen!$D18),2)","v":"2024-04-22"},{"$f":"IFERROR(IF(LEN(DynamischeMilestoneGegevens[[#This Row],[Mijlpalen]])=0,\"\",Mijlpalen!$C18),\"\")","v":""}]
[{"$nulls":6},{"$f":"IFERROR(IF(LEN(Mijlpalen!D19)=0,\"\",IF(AND(Mijlpalen!D19<=$B$12,Mijlpalen!D19>=$B$11-$D$11),Mijlpalen!E19,\"\")),\"\")","v":""},{"$f":"IFERROR(IF(LEN(DynamischeMilestoneGegevens[[#This Row],[Mijlpalen]])=0,$B$12,Mijlpalen!$D19),2)","v":"2024-04-22"},{"$f":"IFERROR(IF(LEN(DynamischeMilestoneGegevens[[#This Row],[Mijlpalen]])=0,\"\",Mijlpalen!$C19),\"\")","v":""}]
["In cel J32 staat een notitie.\nDit is de laatste instructie in dit werkblad.",{"$nulls":5},{"$f":"IFERROR(IF(LEN(Mijlpalen!D20)=0,\"\",IF(AND(Mijlpalen!D20<=$B$12,Mijlpalen!D20>=$B$11-$D$11),Mijlpalen!E20,\"\")),\"\")","v":""},{"$f":"IFERROR(IF(LEN(DynamischeMilestoneGegevens[[#This Row],[Mijlpalen]])=0,$B$12,Mijlpalen!$D20),2)","v":"2024-04-22"},{"$f":"IFERROR(IF(LEN(DynamischeMilestoneGegevens[[#This Row],[Mijlpalen]])=0,\"\",Mijlpalen!$C20),\"\")","v":""},"<-- Als u meer dan 15 mijlpalen op de grafiek wilt plaatsen, breidt u deze tabel gewoon uit en typt u nieuwe invoer in de tabel Mijlpaal in het werkblad Grafiekgegevens.\n"]